bitfinex/quotes_ETHUSD_20250404
["timestamp","ask_amount","ask_price","bid_price","bid_amount"]
[1743736783887,5.582,1792.6,1792.5,5.5788]
[1743736790033,17.95637,1793.0,1792.6,5.57828]
[1743736790235,7.378637,1792.9,1792.6,5.57828]
[1743736790752,7.378637,1792.9,1792.6,11.15665]
[1743736791112,12.956207,1792.9,1792.6,5.57828]
[1743736791936,5.57796,1792.8,1792.4,5.57898]
[1743736792235,11.15607,1792.8,1792.4,11.15796]
[1743736792739,11.15599,1792.8,1792.5,5.57879]
[1743736793039,13.26715133,1792.8,1792.5,5.57879]
[1743736793203,6.3821,1792.7,1792.4,5.57898]
[1743736793403,11.96048,1792.7,1792.4,5.57898]
[1743736793664,6.3821,1792.7,1792.3,11.1588]
[1743736793841,6.3821,1792.7,1792.4,5.5791]
[1743736794038,0.8039,1792.7,1792.4,11.15808]
[1743736794238,0.8039,1792.7,1792.5,11.15743]
[1743736794616,11.96454,1792.9,1792.6,5.57836]
[1743736795333,11.96454,1792.9,1792.5,5.57867]
[1743736795334,11.96453,1792.9,1792.5,5.57867]
[1743736795532,5.57795,1792.8,1792.5,5.57867]
[1743736796340,5.57795,1792.8,1792.4,5.57908]
[1743736796640,11.15606,1792.8,1792.4,11.15801]
[1743736797278,8.96388634,1792.9,1792.3,5.57942]
[1743736797455,6.3869,1792.9,1792.7,5.57814]
[1743736797627,6.3869,1792.9,1792.7,5.57807]
[1743736797833,11.96447,1792.9,1792.6,5.57844]
[1743736798470,11.96447,1792.9,1792.6,11.1568]
[1743736799275,11.96447,1792.9,1792.6,5.57836]
[1743736799771,17.54232,1792.9,1792.5,6.34313]
[1743736799947,5.57786,1792.8,1792.5,11.15734]
[1743736800147,5.57786,1792.8,1792.5,5.57865]
[1743736800551,7.332093,1792.8,1792.5,5.57865]
[1743736800871,14.54149634,1792.9,1792.6,5.57845]
[1743736801239,11.96451,1792.9,1792.6,5.57845]
[1743736801569,6.3869,1792.9,1792.7,5.57806]
[1743736802374,6.3869,1792.9,1792.6,11.15683]
[1743736802601,6.3869,1792.9,1792.7,5.57809]
[1743736802780,6.3869,1792.9,1792.7,5.57815]
[1743736802981,6.3869,1792.9,1792.6,5.57842]
[1743736803196,11.96457,1792.9,1792.6,5.57842]
[1743736803513,11.96457,1792.9,1792.5,5.57879]
[1743736803666,13.762027,1792.9,1792.5,5.57879]
[1743736803861,13.762027,1792.9,1792.7,5.57815]
[1743736803862,8.184357,1792.9,1792.7,5.57815]
[1743736804104,6.3869,1792.9,1792.7,5.57815]
[1743736804291,6.3869,1792.9,1792.8,5.57786]
[1743736804492,6.3869,1792.9,1792.7,5.57815]
[1743736804493,5.583,1792.9,1792.7,11.15619]
[1743736804875,5.583,1792.9,1792.7,11.15609]
[1743736805066,6.01,1793.2,1792.7,1.880009]
[1743736805267,5.582,1793.1,1793.0,5.57696]
[1743736805795,5.582,1793.1,1792.9,5.57741]
[1743736805991,5.582,1793.1,1792.9,11.15484]
[1743736806197,5.582,1793.1,1793.0,5.57724]
[1743736806870,5.581,1793.1,1793.0,5.57724]
[1743736807711,5.581,1793.1,1793.0,6.35034]
[1743736808019,0.8039,1793.5,1793.3,5.57622]
[1743736808318,5.581,1793.4,1793.3,5.57631]
[1743736808477,5.581,1793.5,1793.4,5.576]
[1743736808922,6.01,1793.8,1793.5,5.57544]
[1743736809073,5.581,1793.7,1793.5,11.15092]
[1743736809471,5.581,1793.7,1793.5,5.57544]
[1743736809984,6.01,1793.8,1793.7,5.57506]
[1743736810320,5.581,1793.8,1793.7,5.57506]
[1743736810516,6.3747,1793.7,1793.4,5.57587]
[1743736810889,6.3747,1793.7,1793.3,11.15252]
[1743736811086,12.3847,1793.7,1793.3,11.15252]
[1743736811290,6.8096,1793.7,1793.4,5.57598]
[1743736811718,6.8096,1793.7,1793.4,5.57588]
[1743736811893,6.8096,1793.7,1793.5,5.57559]
[1743736812530,6.01,1793.7,1793.5,5.57558]
[1743736812706,6.01,1793.7,1793.6,5.57537]
[1743736813227,11.59,1793.7,1793.6,5.57537]
[1743736814731,11.59,1793.7,1793.5,6.96870399]
[1743736815039,11.59,1793.7,1793.6,5.57537]
[1743736816450,0.05,1793.9,1793.8,5.57475]
[1743736816612,5.629,1793.9,1793.8,5.57475]
[1743736817202,5.629,1793.9,1793.8,6.36925]
[1743736818267,0.7996,1794.3,1794.2,5.57351]
[1743736818424,6.01,1794.4,1794.3,5.5732]
[1743736818615,5.578,1794.4,1794.3,5.5732]
[1743736819225,5.578,1794.4,1794.2,5.57337]
[1743736819453,5.578,1794.4,1794.3,5.5732]
[1743736819921,12.38991,1794.4,1794.0,11.14812]
[1743736820137,12.38991,1794.4,1794.1,5.57379]
[1743736820441,6.81676,1794.4,1794.2,5.5735]
[1743736820637,5.578,1794.4,1794.3,5.5732]
[1743736824159,5.577,1794.6,1794.3,5.5732]
[1743736824360,0.7676,1794.8,1794.5,5.57237]
[1743736824567,5.576,1794.7,1794.4,5.57277]
[1743736824726,5.576,1794.7,1794.4,11.14553]
[1743736825064,5.576,1794.7,1794.5,5.57245]
[1743736825561,5.576,1794.7,1794.6,5.57227]
[1743736826073,5.576,1794.7,1794.6,5.57215]
[1743736826425,3.7676,1794.8,1794.6,5.57215]
[1743736826661,3.7676,1794.8,1794.7,5.57196]
[1743736826862,9.3436,1794.8,1794.6,5.57214]
[1743736827237,8.576,1794.8,1794.6,5.57214]
[1743736827580,5.576,1794.8,1794.7,5.57196]
[1743736828291,6.06,1794.9,1794.7,5.57196]
[1743736828488,5.576,1794.8,1794.7,5.57196]
[1743736830677,5.576,1794.8,1794.6,11.14428]
[1743736830888,5.576,1794.8,1794.6,5.57213]
[1743736831578,5.576,1794.8,1794.7,0.22502679]
[1743736832983,5.576,1794.8,1794.7,5.79698679]
[1743736833297,5.576,1794.8,1794.7,6.93389847]
[1743736834010,0.05,1794.9,1794.8,5.57165]
[1743736834193,0.05,1794.9,1794.8,6.4026648]
[1743736834396,0.05,1794.9,1794.8,6.60573657]
[1743736834712,5.574,1795.2,1795.1,6.34602]
[1743736834922,5.574,1795.4,1795.1,1.43407031]
[1743736835119,5.574,1795.4,1795.3,5.56999]
[1743736835275,11.14562634,1795.8,1795.4,5.5697]
[1743736835276,5.573,1795.5,1795.4,5.5697]
[1743736835727,5.573,1795.5,1795.4,5.77031055]
[1743736835935,0.7676,1795.8,1795.6,5.5691]
[1743736836208,5.573,1795.7,1795.6,5.56916]
[1743736836579,5.573,1795.7,1795.5,5.56946]
[1743736836820,5.573,1795.7,1795.4,6.70377706]
[1743736836979,5.573,1795.7,1795.6,0.19789743]
[1743736837187,5.573,1795.7,1795.5,5.56947]
[1743736837384,5.573,1795.7,1795.6,0.19789743]
[1743736837620,5.573,1795.7,1795.6,5.76705743]
[1743736838031,0.05,1795.9,1795.7,5.56874]
[1743736838181,5.572,1795.8,1795.7,5.56874]
[1743736838616,5.572,1795.8,1795.6,11.13822]
[1743736838828,5.572,1795.8,1795.7,0.19748747]
[1743736839018,5.572,1795.8,1795.7,5.56885]
[1743736839215,0.05,1795.9,1795.7,11.33518747]
[1743736839421,5.572,1795.8,1795.7,5.76633747]
[1743736840122,5.572,1795.8,1795.7,0.19748747]
[1743736840510,5.572,1795.8,1795.6,5.56903]
[1743736840709,11.14063,1795.8,1795.5,5.56942]
[1743736840932,11.14063,1795.8,1795.7,0.19748747]
[1743736841136,11.14063,1795.8,1795.6,0.19789743]
[1743736841323,5.572,1795.8,1795.7,0.19372956]
[1743736841636,11.14054,1795.8,1795.5,5.56932]
[1743736841798,13.609919,1795.8,1795.7,0.19372956]
[1743736841994,13.609919,1795.8,1795.4,11.13938]
[1743736842199,13.609919,1795.8,1795.5,0.19370232]
[1743736842822,19.178739,1795.8,1795.5,0.19370232]
[1743736843016,5.56913,1795.7,1795.5,0.19370232]
[1743736843245,13.31379953,1795.7,1795.3,11.89522]
[1743736843449,13.31379953,1795.7,1795.6,0.18495024]
[1743736843643,13.31379953,1795.7,1795.3,6.32525]
[1743736843849,5.56918,1795.6,1795.2,11.14068]
[1743736844031,6.36304,1795.5,1795.1,5.57056]
[1743736844210,5.57053,1795.2,1794.8,5.57143]
[1743736844409,5.57074,1795.1,1794.7,11.89922]
[1743736844611,5.57,1795.0,1794.7,11.14382]
[1743736844947,6.3635,1795.0,1794.6,11.14437]
[1743736845107,11.93467,1795.0,1794.6,5.57213]
[1743736845308,17.5059,1795.0,1794.6,5.57213]
[1743736845846,5.57137,1794.9,1794.6,5.57213]
[1743736846008,0.7935,1795.1,1794.7,5.57192]
[1743736846207,0.7935,1795.1,1794.6,1.19001]
[1743736846208,11.14106,1795.0,1794.6,5.57217]
[1743736846434,5.57,1795.0,1794.7,5.57185]
[1743736847045,11.14105,1795.0,1794.7,5.57185]
[1743736847213,5.57137,1794.9,1794.6,5.57208]
[1743736847628,5.57137,1794.9,1794.6,6.762083]
[1743736848733,11.14105,1795.0,1794.7,5.57195]
[1743736849129,22.72235,1795.0,1794.6,6.762083]
[1743736849445,17.15105,1795.0,1794.6,6.762083]
[1743736849634,22.72228,1795.0,1794.6,6.762083]
[1743736850268,5.57147,1794.9,1794.6,6.762083]
[1743736850467,17.15109,1795.0,1794.5,0.7554]
[1743736850772,5.57134,1794.9,1794.6,5.57216]
[1743736851368,5.57134,1794.9,1794.5,6.32792]
[1743736851567,5.57196,1794.7,1794.4,5.57284]
[1743736851746,5.57,1794.6,1794.4,5.57277]
[1743736851947,5.57,1794.6,1794.5,0.16080093]
[1743736852885,12.3735,1794.6,1794.5,0.16080093]
[1743736853070,5.57284,1794.5,1794.0,5.57399]
[1743736853273,5.57321,1794.3,1794.0,5.41318907]
[1743736853470,5.57,1794.2,1794.0,5.41318907]
[1743736853794,5.57,1794.2,1793.9,6.33520961]
[1743736853958,11.14353,1794.2,1793.9,5.57980961]
[1743736854298,5.57,1794.2,1793.9,5.57981961]
[1743736854857,5.57,1794.2,1793.9,5.57969961]
[1743736855057,5.57,1794.2,1794.0,5.57412]
[1743736855761,5.57,1794.2,1794.0,5.57395]
[1743736855961,6.8035,1794.5,1794.3,5.57316]
[1743736856287,5.571,1794.4,1794.3,5.57316]
[1743736856951,5.571,1794.4,1794.2,5.57351]
[1743736857147,5.571,1794.4,1794.2,5.57338]
[1743736858195,5.571,1794.3,1794.2,5.57338]
[1743736858902,5.571,1794.3,1794.1,5.57379]
[1743736859479,5.571,1794.3,1794.1,5.57367]
[1743736859966,5.571,1794.3,1794.1,11.14737]
[1743736860291,5.571,1794.3,1794.2,0.16563257]
[1743736863678,5.571,1794.3,1794.2,5.73914257]
[1743736863880,11.1442,1794.3,1794.2,0.16563257]
[1743736864110,5.57362,1794.2,1793.9,5.57436]
[1743736864287,6.40012,1794.2,1793.8,5.57466]
[1743736864495,7.242718,1794.3,1794.1,5.57382]
[1743736864810,5.571,1794.3,1794.2,5.57351]
[1743736866592,5.571,1794.3,1794.0,11.14811]
[1743736866793,5.57367,1794.2,1794.1,0.16770306]
[1743736866994,11.14743,1794.2,1793.8,5.57474]
[1743736867195,5.57389,1794.1,1793.9,0.15537312]
[1743736867396,5.57367,1794.2,1793.9,0.15537312]
[1743736867695,5.57367,1794.2,1793.9,5.72980312]
[1743736867892,5.57395,1794.1,1793.9,0.15537312]
[1743736868122,1.810138,1794.2,1793.7,0.7512]
[1743736868322,12.34871,1794.5,1794.0,0.96681565]
[1743736868530,5.571,1794.2,1794.1,5.5737]
[1743736868686,5.571,1794.2,1794.1,5.72898345]
[1743736868886,6.01,1794.7,1794.5,5.57236]
[1743736869096,0.7661,1794.9,1794.7,5.57193]
[1743736869285,5.571,1794.8,1794.7,5.57193]
[1743736870588,5.571,1794.8,1794.6,5.57218]
[1743736870789,5.571,1794.8,1794.6,11.14429]
[1743736871088,5.571,1794.8,1794.7,5.57196]
[1743736871825,5.571,1794.8,1794.6,11.14426]
[1743736872026,5.571,1794.8,1794.7,5.57196]
[1743736872326,8.14775634,1795.1,1794.8,5.57154]
[1743736872327,5.57077,1795.1,1794.8,5.57154]
[1743736872497,5.57,1795.0,1794.8,5.57137]
[1743736872916,0.7661,1794.9,1794.6,5.57214]
[1743736873245,0.7661,1794.9,1794.6,11.14424]
[1743736873605,1.956836,1794.9,1794.7,5.57181]
[1743736874231,5.57205,1794.7,1794.3,5.57293]
[1743736874433,6.3361,1794.6,1794.3,5.57293]
[1743736874647,6.3361,1794.6,1794.4,5.57279]
[1743736875241,6.3361,1794.6,1794.4,11.14552]
[1743736875445,5.57,1794.6,1794.4,11.14552]
[1743736875937,5.57,1794.6,1794.5,5.57258]
[1743736876336,5.57,1794.6,1794.4,5.57273]
[1743736876745,5.57,1794.6,1794.4,11.14549]
[1743736877141,5.57,1794.6,1794.4,5.57273]
[1743736877743,6.760807,1794.6,1794.3,5.57317]
[1743736877944,12.333117,1794.6,1794.2,5.57328]
[1743736878147,6.760807,1794.6,1794.1,5.57382]
[1743736878305,12.333307,1794.6,1794.3,0.13855911]
[1743736878618,1.2333307,1794.5,1794.4,0.13814856]
[1743736878938,1.2333307,1794.5,1794.2,5.57333]
[1743736879143,6.8059107,1794.5,1794.4,0.13814856]
[1743736879304,6.8059107,1794.5,1794.3,0.13855911]
[1743736879305,1.2333307,1794.5,1794.3,0.13855911]
[1743736879512,5.57,1794.6,1794.3,11.14612]
[1743736879705,5.57,1794.6,1794.4,0.13814856]
[1743736880245,5.57,1794.6,1794.4,5.71088856]
[1743736880425,5.57,1794.6,1794.4,0.13814856]
[1743736881020,11.14236,1794.6,1794.4,0.13814856]
[1743736881256,1.114236,1794.5,1794.2,11.14672]
[1743736881454,1.114236,1794.5,1794.2,5.5733]
[1743736881657,6.33908,1794.4,1794.3,0.13855911]
[1743736881821,0.7661,1794.4,1794.3,5.5732]
[1743736882160,0.7661,1794.4,1794.3,0.13855911]
[1743736882460,7.0842936,1794.4,1794.1,5.57382]
[1743736882758,1.5114036,1794.4,1794.3,0.13855911]
[1743736882961,0.7661,1794.4,1794.2,5.7121897]
[1743736883151,0.7661,1794.4,1794.3,0.13855911]
[1743736883876,6.33899,1794.4,1794.3,0.13855911]
[1743736884171,6.33899,1794.4,1794.0,5.57403]
[1743736884379,6.33899,1794.4,1794.3,0.13855911]
[1743736884524,13.2147546,1794.4,1794.0,5.57399]
[1743736884865,6.39533,1794.1,1793.8,5.57474]
[1743736885038,5.569,1794.0,1793.8,5.57474]
[1743736886268,5.569,1794.0,1793.8,5.57464]
[1743736887265,5.569,1794.0,1793.7,5.57496]
[1743736887469,6.13146,1793.9,1793.6,5.57531]
[1743736887845,6.3964,1793.8,1793.4,5.57597]
[1743736888074,5.5754,1793.6,1793.3,5.57625]
[1743736888285,5.569,1793.5,1793.4,5.576]
[1743736888853,5.569,1793.5,1793.3,5.57619]
[1743736889272,5.569,1793.5,1793.4,5.576]
[1743736889851,5.569,1793.5,1793.4,6.3516]
[1743736890083,5.569,1793.5,1793.4,8.101996]
[1743736890285,6.01,1793.9,1793.8,5.57475]
[1743736890474,5.57,1793.9,1793.8,5.57475]
[1743736892087,5.57,1793.9,1793.8,5.72007869]
[1743736892285,5.57,1793.9,1793.8,0.14532869]
[1743736892489,7.285423,1793.9,1793.8,0.14532869]
[1743736892679,7.285423,1793.9,1793.7,5.57492]
[1743736892866,5.57,1793.9,1793.8,0.14501972]
[1743736893291,5.57,1793.9,1793.7,5.57492]
[1743736893495,6.8165,1794.0,1793.8,5.71958972]
[1743736893653,6.01,1794.0,1793.9,5.57444]
[1743736893853,11.58,1794.0,1793.9,0.14449661]
[1743736896673,20.233412,1794.0,1793.6,5.57533]
[1743736896874,5.57447,1793.9,1793.6,5.57533]
[1743736897075,2.57698634,1793.9,1793.4,5.57586]
[1743736897271,5.57507,1793.7,1793.4,5.57586]
[1743736897488,5.57,1793.6,1793.4,11.15171]
[1743736898195,5.57,1793.6,1793.4,11.15175]
[1743736898504,5.57,1793.6,1793.4,5.57585]
[1743736899489,6.01,1793.9,1793.7,5.57504]
[1743736899802,5.57,1793.8,1793.7,11.14996]
[1743736900001,11.58357,1794.2,1793.9,5.57425]
[1743736900161,5.57,1794.1,1793.9,5.57425]
[1743736902611,5.57,1794.1,1794.0,0.14425437]
[1743736904198,5.57,1794.1,1793.9,5.57442]
[1743736904431,5.57,1794.1,1794.0,0.14425437]
[1743736906928,5.57,1794.1,1794.0,5.71838437]
[1743736907237,6.01,1794.2,1794.0,5.71838437]
[1743736907407,5.57,1794.1,1794.0,5.71838437]
[1743736908808,5.57,1794.1,1794.0,0.14425437]
[1743736909106,5.56460039,1794.1,1794.0,0.14425437]
[1743736911544,5.56460039,1794.1,1794.0,5.71838437]
[1743736918343,5.56460039,1794.1,1794.0,5.57413]
[1743736918671,5.56460039,1794.1,1794.0,5.71726117]
[1743736920976,5.568,1794.1,1794.0,11.29139117]
[1743736921478,6.01,1794.2,1794.1,5.57382]
[1743736921694,6.01,1794.6,1794.0,3.92626663]
[1743736921991,5.568,1794.7,1794.5,6.34254]
[1743736922143,12.36557,1795.2,1794.8,11.143]
[1743736922343,3.0,1795.1,1794.9,5.57128]
[1743736922570,6.01,1795.2,1795.0,5.57088]
[1743736922739,5.568,1795.1,1795.0,5.70970985]
[1743736923141,5.568,1795.1,1795.0,5.57088]
[1743736923581,5.568,1795.1,1794.9,6.34131]
[1743736923752,5.568,1795.1,1794.9,11.91249]
[1743736923955,5.568,1795.1,1795.0,5.70985985]
[1743736931586,6.3936,1795.1,1795.0,0.13882985]
[1743736931793,7.5514,1795.1,1794.8,11.14316]
[1743736932089,7.5514,1795.1,1794.9,5.70779995]
[1743736932592,7.5514,1795.1,1794.9,5.70772995]
[1743736932968,6.3936,1795.1,1794.9,5.70767995]
[1743736933168,6.3936,1795.1,1795.0,5.57103]
[1743736933468,5.568,1795.1,1795.0,5.70710968]
[1743736935474,6.01,1795.2,1795.0,5.70710968]
[1743736935475,6.01,1795.2,1795.1,5.57072]
[1743736935674,6.01,1795.2,1795.1,5.70394806]
[1743736935909,44.3156,1795.7,1795.3,0.7508]
[1743736936076,43.49,1795.7,1795.6,5.56916]
[1743736936275,49.055,1795.7,1795.6,5.70005714]
[1743736936465,5.565,1795.7,1795.6,6.45085714]
[1743736937607,0.05,1795.9,1795.7,5.56884]
[1743736937813,0.05,1795.9,1795.8,5.56854]
[1743736938023,0.05,1795.9,1795.8,6.31934]
[1743736938199,0.05,1795.9,1795.8,6.44790329]
[1743736939327,0.05,1795.9,1795.8,0.12856329]
[1743736941803,0.05,1795.9,1795.8,6.50358929]
[1743736942003,0.05,1795.9,1795.8,8.26770522]
[1743736944838,0.05,1795.9,1795.8,8.21201922]
[1743736946242,0.05,1795.9,1795.8,6.44790329]
[1743736946744,0.05,1795.9,1795.8,5.69710329]
[1743736950362,0.05,1795.9,1795.8,0.12856329]
[1743736950745,0.05,1795.9,1795.8,5.69710329]
[1743736951648,0.05,1795.9,1795.8,0.12856329]
[1743736952466,0.05,1795.9,1795.8,5.69710329]
[1743736953294,0.05,1795.9,1795.8,0.12856329]
[1743736953899,6.737424,1795.9,1795.8,0.12856329]
[1743736954100,1.169194,1795.9,1795.6,11.13821]
[1743736954264,1.169194,1795.9,1795.7,0.12583373]
[1743736954461,6.737604,1795.9,1795.5,6.3762]
[1743736954794,0.8165,1795.8,1795.6,0.12624369]
[1743736955289,0.8165,1795.8,1795.6,5.69537369]
[1743736955981,0.05,1795.9,1795.6,6.50211369]
[1743736956179,0.05,1795.9,1795.7,5.56877]
[1743736956560,0.05,1795.9,1795.8,0.12598429]
[1743736957496,0.05,1795.9,1795.8,5.69452429]
[1743736958105,0.05,1795.9,1795.8,0.12598429]
[1743736958586,5.609,1795.9,1795.8,5.69452429]
[1743736958795,5.609,1795.9,1795.8,6.82084872]
[1743736958969,0.05,1795.9,1795.8,6.82084872]
[1743736959164,5.609,1795.9,1795.8,6.82084872]
[1743736960170,0.05,1795.9,1795.8,6.82084872]
[1743736960370,5.609,1795.9,1795.8,6.82084872]
[1743736962712,5.609,1795.9,1795.8,5.69452429]
[1743736965211,5.609,1795.9,1795.8,6.47542429]
[1743736965802,0.05,1795.9,1795.8,6.47542429]
[1743736966002,0.05,1795.9,1795.8,6.53110271]
[1743736966377,0.05,1795.9,1795.8,6.47542429]
[1743736967120,0.05,1795.9,1795.8,8.29238926]
[1743736967813,0.05,1795.9,1795.8,8.23671072]
[1743736967981,0.05,1795.9,1795.8,8.29238706]
[1743736968181,0.05,1795.9,1795.8,5.69452429]
[1743736973889,0.05,1795.9,1795.8,5.75020466]
[1743736974930,0.05,1795.9,1795.8,5.69452429]
[1743736982541,0.05,1795.9,1795.8,0.12598429]
[1743736983365,0.05,1795.9,1795.6,11.1381]
[1743736983366,5.61829,1795.9,1795.6,5.56903]
[1743736983569,6.39494,1795.8,1795.4,5.56966]
[1743736983768,5.56888,1795.7,1795.4,5.56966]
[1743736983930,5.556,1795.6,1795.4,5.56966]
[1743736984131,5.556,1795.6,1795.4,11.13936]
[1743736984331,5.556,1795.6,1795.4,5.56966]
[1743736984950,5.556,1795.6,1795.4,5.56964]
[1743736985155,0.8262,1795.5,1795.2,5.5703]
[1743736985364,0.8262,1795.5,1795.3,5.56998]
[1743736985574,0.8262,1795.5,1795.2,5.57038]
[1743736985936,6.39571,1795.5,1795.1,11.14128]
[1743736986464,8.203361,1795.5,1795.1,5.57061]
[1743736986642,8.203361,1795.5,1795.0,5.57099]
[1743736986643,11.96617,1795.4,1795.0,5.57099]
[1743736986842,5.57012,1795.3,1795.0,5.57099]
[1743736987176,6.39615,1795.4,1795.0,5.57099]
[1743736987177,5.556,1795.2,1795.1,5.69865005]
[1743736987360,5.556,1795.2,1795.1,0.12793005]
[1743736987567,5.556,1795.2,1795.1,5.69865005]
[1743736989072,5.556,1795.2,1795.1,0.12793005]
[1743736989293,7.465316,1795.2,1795.1,0.12793005]
[1743736989480,7.465316,1795.2,1794.9,5.57127]
[1743736989644,13.035746,1795.2,1795.1,0.12793005]
[1743736989981,13.035746,1795.2,1795.1,0.13179783]
[1743736990279,13.035746,1795.2,1794.9,5.57127]
[1743736990475,13.035746,1795.2,1795.1,0.13179783]
[1743736990691,13.035746,1795.2,1795.0,0.13220805]
[1743736990893,13.035746,1795.2,1795.1,0.13179783]
[1743736991102,7.465316,1795.2,1794.9,11.14246]
[1743736991286,7.465316,1795.2,1795.0,0.13220805]
[1743736993181,7.465316,1795.2,1795.0,5.70321805]
[1743736993492,6.3527,1795.2,1795.0,5.70309805]
[1743736993687,0.7967,1795.7,1795.5,5.56917]
[1743736993893,5.556,1795.6,1795.5,5.56917]
[1743736994086,5.556,1795.6,1795.5,5.69971996]
[1743736994494,5.556,1795.6,1795.5,0.13054996]
[1743736995179,5.556,1795.6,1795.4,5.56968]
[1743736995380,5.556,1795.6,1795.5,5.56947]
[1743736995573,6.01,1795.8,1795.6,5.5691]
[1743736995905,5.557,1795.7,1795.6,5.5691]
[1743736996111,5.557,1795.7,1795.5,11.13881]
[1743736996495,5.557,1795.7,1795.6,5.56916]
[1743736996710,5.557,1795.7,1795.5,5.56934]
[1743736997705,5.557,1795.7,1795.5,11.13868]
[1743736997910,5.557,1795.7,1795.5,5.56934]
[1743736999485,5.557,1795.7,1795.6,5.56916]
[1743737000821,50.3177,1795.9,1795.7,5.56868]
[1743737000997,5.556,1795.8,1795.7,5.56868]
[1743737001984,5.556,1795.8,1795.7,5.69597098]
[1743737004687,5.605,1795.9,1795.7,5.69597098]
[1743737004888,5.605,1795.9,1795.8,5.56854]
[1743737005198,5.605,1795.9,1795.8,5.69474845]
[1743737006426,5.605,1795.9,1795.8,0.12620845]
[1743737006728,5.605,1795.9,1795.8,5.69474845]
[1743737009364,5.604,1795.9,1795.8,5.69474845]
[1743737009707,5.604,1795.9,1795.8,0.12620845]
[1743737009911,5.604,1795.9,1795.8,5.69474845]
[1743737011713,5.604,1795.9,1795.8,0.12620845]
[1743737012551,13.081028,1795.9,1795.8,0.12620845]
[1743737012737,18.649468,1795.9,1795.5,11.1387]
[1743737012935,13.081028,1795.9,1795.6,0.12618758]
[1743737013151,13.081028,1795.9,1795.6,5.69532758]
[1743737014077,13.081028,1795.9,1795.6,11.26436758]
[1743737014372,13.081028,1795.9,1795.6,5.69522758]
[1743737014561,13.081028,1795.9,1795.6,0.12618758]
[1743737014964,5.56861,1795.8,1795.6,0.12618758]
[1743737015263,7.4335738,1795.8,1795.6,0.12618758]
[1743737015788,13.0023038,1795.8,1795.6,0.12618758]
[1743737015996,6.35925,1795.7,1795.6,0.12618758]
[1743737016493,11.13888,1795.6,1795.2,11.14059]
[1743737016695,5.553,1795.5,1795.3,5.57007]
[1743737017193,5.553,1795.5,1795.4,0.12742796]
[1743737017981,12.791636,1795.5,1795.4,0.12742796]
[1743737018384,12.791636,1795.5,1795.2,5.57029]
[1743737018696,12.791636,1795.5,1795.4,0.12742796]
[1743737018896,12.791636,1795.5,1795.3,0.12783805]
[1743737019065,12.791636,1795.5,1795.4,0.12821277]
[1743737019563,12.791636,1795.5,1795.2,5.57029]
[1743737019795,12.791636,1795.5,1795.3,0.12862286]
[1743737020096,3.7904,1795.7,1795.3,0.12862286]
[1743737020281,8.29758496,1795.8,1795.6,5.56894]
[1743737020282,5.553,1795.8,1795.6,5.56894]
[1743737020482,5.553,1795.8,1795.6,11.13798]
[1743737020689,5.553,1795.8,1795.7,0.12678655]
[1743737021085,5.553,1795.8,1795.7,5.56885]
[1743737021291,5.553,1795.8,1795.7,5.69563655]
[1743737022605,5.553,1795.8,1795.7,0.12678655]
[1743737023102,5.553,1795.8,1795.6,5.56894]
[1743737023326,5.553,1795.8,1795.7,0.12678655]
[1743737023699,5.553,1795.8,1795.7,5.56885]
[1743737024017,5.553,1795.8,1795.7,5.69563655]
[1743737026812,5.602,1795.9,1795.8,6.39654]
[1743737027185,5.602,1795.9,1795.8,6.52207587]
[1743737027385,5.602,1795.9,1795.8,0.12553587]
[1743737027922,11.612,1795.9,1795.8,0.12553587]
[1743737028219,24.54627,1795.9,1795.5,11.13877]
[1743737028423,5.56864,1795.8,1795.5,5.56933]
[1743737028730,6.35284,1795.8,1795.6,0.12618761]
[1743737028899,0.7842,1795.8,1795.6,5.69524761]
[1743737029301,0.7842,1795.8,1795.6,11.26426761]
[1743737029735,0.7842,1795.8,1795.6,0.12618761]
[1743737029916,0.7842,1795.8,1795.6,5.69525761]
[1743737031023,0.7842,1795.8,1795.6,5.69520761]
[1743737031524,1.20646612,1795.8,1795.6,11.26423761]
[1743737031723,1.20646612,1795.8,1795.6,5.69520761]
[1743737032127,0.42226612,1795.8,1795.6,11.26422761]
[1743737032422,18.978,1795.9,1795.6,5.69530761]
[1743737032629,18.978,1795.9,1795.6,5.69525761]
[1743737033000,24.54638,1795.9,1795.6,5.69523761]
[1743737033192,2.454638,1795.8,1795.6,11.26426761]
[1743737033524,2.454638,1795.8,1795.6,11.26427761]
[1743737033725,11.612,1795.9,1795.6,11.26427761]
[1743737033923,22.7488,1795.9,1795.6,0.12618761]
[1743737034225,11.612,1795.9,1795.6,11.26434761]
[1743737034523,17.1803,1795.9,1795.6,5.69523761]
[1743737035127,22.7487,1795.9,1795.6,5.69523761]
[1743737035297,2.27487,1795.8,1795.6,5.69523761]
[1743737035496,2.27487,1795.8,1795.6,0.12618761]
[1743737036126,22.7487,1795.9,1795.6,0.12618761]
[1743737036127,5.55,1795.7,1795.6,0.90328761]
[1743737036290,6.06,1795.9,1795.7,5.56863]
[1743737036491,6.06,1795.9,1795.8,5.56854]
[1743737036733,5.6,1795.9,1795.8,6.47159622]
[1743737042361,5.6,1795.9,1795.8,5.69449622]
[1743737043243,5.6,1795.9,1795.8,6.82080884]
[1743737044426,5.6,1795.9,1795.8,6.69485262]
[1743737044630,5.6,1795.9,1795.8,5.69488852]